bitfinex/quotes_BTCUSD_20220303
["timestamp","ask_amount","ask_price","bid_price","bid_amount"]
[1646304371743,0.004,43386.0,43380.0,0.07953578]
[1646304371945,0.0463,43391.0,43380.0,0.07953578]
[1646304372348,0.5011,43402.0,43381.0,0.31939512]
[1646304372349,0.0463,43398.0,43381.0,0.31939512]
[1646304372550,0.5011,43402.0,43381.0,0.31939512]
[1646304372551,0.01152,43397.0,43381.0,0.31939512]
[1646304372845,0.16498395,43400.0,43382.0,0.1]
[1646304372846,0.2271165,43393.0,43382.0,0.1]
[1646304373051,0.2271165,43393.0,43384.0,0.20966079]
[1646304373245,0.2271165,43393.0,43380.0,0.08353578]
[1646304373846,0.18332297,43390.0,43387.0,0.0699949]
[1646304374445,0.18332297,43390.0,43379.0,0.1]
[1646304374646,0.18332297,43390.0,43382.0,0.005]
[1646304374848,0.2271165,43393.0,43382.0,0.005]
[1646304374849,0.00016629,43391.0,43382.0,0.005]
[1646304375482,0.00016629,43391.0,43383.0,0.18781309]
[1646304375683,0.0463,43404.0,43383.0,0.60720821]
[1646304375684,0.01152,43403.0,43383.0,0.60720821]
[1646304375881,0.00016068,43389.0,43383.0,0.60720821]
[1646304376081,0.00016068,43389.0,43384.0,0.05467114]
[1646304376780,0.19508991,43397.0,43384.0,0.05467114]
[1646304377181,0.00010966,43389.0,43384.0,0.05467114]
[1646304377580,0.20755996,43392.0,43384.0,0.05467114]
[1646304377781,0.00043856,43395.0,43384.0,0.05467114]
[1646304377981,0.19508991,43397.0,43384.0,0.05467114]
[1646304378185,0.19508991,43397.0,43382.0,0.15]
[1646304378739,0.19508991,43397.0,43386.0,0.27959527]
[1646304378740,0.26492111,43391.0,43386.0,0.27959527]
[1646304378942,0.19508991,43397.0,43386.0,0.27959527]
[1646304379142,1.227146,43412.0,43379.0,0.004]
[1646304379143,0.19968354,43390.0,43379.0,0.004]
[1646304379740,0.00016647,43391.0,43386.0,0.17465653]
[1646304379940,0.00016647,43391.0,43379.0,0.004]
[1646304380140,0.26950312,43390.0,43378.0,0.05302195]
[1646304380747,0.26950312,43390.0,43379.0,0.008]
[1646304380944,0.26950312,43390.0,43383.0,0.17861133]
[1646304381144,0.26950312,43390.0,43380.0,0.26247619]
[1646304381345,0.26950312,43390.0,43379.0,0.008]
[1646304381744,0.26950312,43390.0,43387.0,0.07255138]
[1646304382348,0.26950312,43390.0,43380.0,0.15]
[1646304382602,0.26950312,43390.0,43387.0,0.003]
[1646304384204,0.26950312,43390.0,43388.0,0.03976789]
[1646304384205,0.355302,43389.0,43388.0,0.03976789]
[1646304384403,0.355302,43389.0,43388.0,0.07953578]
[1646304384606,1.0,43388.0,43382.0,0.002]
[1646304384802,0.355302,43386.0,43382.0,0.002]
[1646304385007,1.0,43383.0,43362.0,0.31939512]
[1646304385201,1.0,43383.0,43353.0,0.4775]
[1646304385202,1.393394,43382.0,43363.0,0.07073061]
[1646304385406,0.333092,43382.0,43363.0,0.07073061]
[1646304385603,0.333092,43382.0,43369.0,0.20628665]
[1646304385800,0.333092,43382.0,43363.0,0.07073061]
[1646304386234,0.26328426,43367.0,43363.0,0.07073061]
[1646304386436,0.19490618,43372.0,43363.0,0.07073061]
[1646304386437,0.59650818,43372.0,43371.0,0.51192316]
[1646304387431,0.59650818,43372.0,43371.0,0.51148356]
[1646304387432,0.24120618,43372.0,43371.0,0.51148356]
[1646304387632,0.47191106,43372.0,43371.0,0.56708157]
[1646304388333,0.47191106,43372.0,43371.0,0.51148356]
[1646304389335,0.82721306,43372.0,43371.0,0.51148356]
[1646304389986,0.82721306,43372.0,43371.0,0.50648356]
[1646304390386,0.82721306,43372.0,43371.0,0.56416207]
[1646304390387,0.47191106,43372.0,43371.0,0.56416207]
[1646304390991,0.0463,43372.0,43371.0,0.56416207]
[1646304391988,0.21953664,43375.0,43371.0,0.56416207]
[1646304392786,0.21953664,43375.0,43371.0,0.51148356]
[1646304392787,0.355302,43374.0,43371.0,0.51148356]
[1646304392989,0.21953664,43375.0,43371.0,0.51148356]
[1646304393839,0.0463,43381.0,43372.0,0.067062]
[1646304394054,0.00061559,43382.0,43373.0,0.15466892]
[1646304394237,0.00061559,43382.0,43375.0,0.15]
[1646304394437,0.00061559,43382.0,43376.0,0.31700848]
[1646304394842,0.05,43385.0,43377.0,0.26749754]
[1646304395037,0.03466,43395.0,43378.0,0.15]
[1646304395038,0.06152,43395.0,43378.0,0.15]
[1646304395238,0.06152,43395.0,43379.0,0.31700848]
[1646304395239,0.000624,43388.0,43379.0,0.31700848]
[1646304395439,0.000624,43388.0,43383.0,0.15]
[1646304395636,0.000624,43388.0,43380.0,0.1]
[1646304395836,0.000624,43388.0,43383.0,0.15]
[1646304396036,0.05,43395.0,43380.0,0.1]
[1646304396037,0.28694872,43394.0,43380.0,0.1]
[1646304396239,0.15614125,43397.0,43386.0,0.15]
[1646304396444,0.000156,43391.0,43386.0,0.15]
[1646304396641,0.009361,43431.0,43399.0,0.25]
[1646304396843,0.4623,43438.0,43396.0,0.0297456]
[1646304396844,0.03441919,43439.0,43420.0,1.0]
[1646304397041,0.03441919,43439.0,43422.0,0.15]
[1646304397239,0.22350083,43439.0,43426.0,0.17974711]
[1646304397502,0.20924566,43438.0,43433.0,0.0522]
[1646304397714,0.20924566,43438.0,43434.0,0.0463]
[1646304397715,0.20424566,43438.0,43434.0,0.0463]
[1646304397903,0.22350083,43439.0,43435.0,0.0453]
[1646304398106,0.22350083,43439.0,43436.0,0.0463]
[1646304398304,0.22350083,43439.0,43437.0,0.0463]
[1646304398305,0.355302,43438.0,43437.0,0.0463]
[1646304398506,0.355302,43437.0,43434.0,0.0463]
[1646304398705,0.355302,43437.0,43421.0,0.31700848]
[1646304398706,0.21306181,43432.0,43421.0,0.31600848]
[1646304398903,0.27686238,43427.0,43423.0,0.115185]
[1646304399110,0.21306181,43432.0,43424.0,0.0463]
[1646304399304,0.21306181,43432.0,43419.0,0.15]
[1646304399305,0.22350083,43439.0,43425.0,0.36330848]
[1646304399505,0.03441919,43439.0,43426.0,0.0463]
[1646304399705,0.03441919,43439.0,43426.0,0.1463]
[1646304400105,0.20426422,43432.0,43426.0,0.1463]
[1646304400308,0.24000001,43433.0,43426.0,0.1463]
[1646304400508,0.24000001,43433.0,43431.0,0.15]
[1646304400810,0.24000001,43433.0,43430.0,0.1963]
[1646304401005,0.24000001,43433.0,43430.0,0.0463]
[1646304401237,0.24000001,43433.0,43432.0,0.15]
[1646304401444,0.24000001,43433.0,43432.0,0.1963]
[1646304402440,0.24000001,43433.0,43432.0,0.69228158]
[1646304402641,0.00015484,43435.0,43433.0,1.0]
[1646304402840,0.03441919,43439.0,43436.0,0.05286973]
[1646304402841,0.01206896,43439.0,43436.0,0.05286973]
[1646304403043,0.01206896,43439.0,43438.0,0.15]
[1646304403238,0.00319501,43455.0,43438.0,0.15]
[1646304403239,0.00319501,43455.0,43439.0,1.0]
[1646304403442,0.00319501,43455.0,43443.0,0.25127981]
[1646304403443,0.0001,43444.0,43443.0,0.25127981]
[1646304403642,0.00319501,43455.0,43443.0,0.87966992]
[1646304403839,0.00319501,43455.0,43446.0,0.24627981]
[1646304403840,7.318e-05,43448.0,43446.0,0.24627981]
[1646304404040,0.05,43457.0,43448.0,1.0]
[1646304404244,0.001,43482.0,43456.0,0.145]
[1646304404245,0.31700848,43467.0,43456.0,0.145]
[1646304404441,0.19781451,43469.0,43457.0,0.0463]
[1646304404640,0.31700848,43467.0,43459.0,0.145]
[1646304404839,0.19781451,43469.0,43460.0,0.0463]
[1646304405115,0.01,43469.0,43465.0,0.145]
[1646304405310,0.01,43469.0,43466.0,0.0463]
[1646304406104,0.01,43469.0,43468.0,0.285]
[1646304406309,0.00248921,43470.0,43468.0,0.84858458]
[1646304406505,0.05067249,43476.0,43470.0,1.0]
[1646304406706,0.00067249,43476.0,43475.0,0.145]
[1646304406909,0.00067249,43476.0,43475.0,0.14750293]
[1646304407104,0.002,43479.0,43475.0,0.14704783]
[1646304407304,0.4163,43488.0,43476.0,0.10120293]
[1646304407508,0.4163,43488.0,43476.0,0.0463]
[1646304407807,0.4163,43488.0,43468.0,0.11762]
[1646304407808,0.21115367,43488.0,43478.0,0.145]
[1646304408003,0.20588256,43488.0,43479.0,0.0424]
[1646304408204,0.01,43489.0,43485.0,0.145]
[1646304408411,0.05,43496.0,43485.0,0.145]
[1646304408412,0.05,43496.0,43488.0,1.145]
[1646304408607,0.209842,43500.0,43495.0,0.145]
[1646304408847,0.05,43506.0,43500.0,0.95984]
[1646304409049,0.001,43512.0,43505.0,0.145]
[1646304409244,0.001,43512.0,43509.0,0.145]
[1646304409445,0.001,43512.0,43509.0,0.1874]
[1646304409847,0.001,43512.0,43509.0,0.0424]
[1646304410046,0.16390403,43511.0,43509.0,0.0424]
[1646304410256,1.67231048,43510.0,43493.0,0.4994]
[1646304410447,1.67231048,43510.0,43494.0,0.0424]
[1646304410448,0.42760303,43509.0,43494.0,0.0424]
[1646304410646,0.32314248,43508.0,43490.0,0.0424]
[1646304410845,0.32314248,43508.0,43487.0,0.145]
[1646304411045,0.32314248,43508.0,43488.0,0.0424]
[1646304411244,0.32314248,43508.0,43481.0,0.4994]
[1646304411245,0.21269716,43497.0,43490.0,0.145]
[1646304411448,0.21269716,43497.0,43487.0,0.0424]
[1646304411449,0.7102654,43497.0,43489.0,0.145]
[1646304411647,0.21269716,43497.0,43489.0,0.0424]
[1646304411951,0.21269716,43497.0,43481.0,0.85880848]
[1646304412145,0.21269716,43497.0,43483.0,0.145]
[1646304412344,0.00016881,43504.0,43484.0,0.31700848]
[1646304412598,0.00016881,43504.0,43503.0,0.06990198]
[1646304412801,0.00016881,43504.0,43485.0,0.995]
[1646304412802,1.0,43503.0,43483.0,0.12066982]
[1646304413002,0.00016881,43504.0,43470.0,0.4164828]
[1646304413003,1.0,43500.0,43470.0,0.4164828]
[1646304413197,1.0,43500.0,43469.0,0.262]
[1646304413198,0.355302,43491.0,43469.0,0.117]
[1646304413397,0.005,43488.0,43465.0,0.5]
[1646304413600,0.00016883,43491.0,43478.0,0.20905472]
[1646304413811,0.00016883,43491.0,43478.0,0.145]
[1646304414502,0.00016883,43491.0,43488.0,0.145]
[1646304414701,0.05067522,43498.0,43490.0,0.01482759]
[1646304414702,0.00067522,43498.0,43490.0,0.01482759]
[1646304414901,0.00067522,43498.0,43497.0,0.145]
[1646304415297,0.00067522,43498.0,43492.0,0.01672122]
[1646304415298,0.00067522,43498.0,43492.0,0.006121]
[1646304415597,0.00067522,43498.0,43496.0,0.1395449]
[1646304415900,0.05,43508.0,43497.0,0.60155338]
[1646304416098,0.001,43512.0,43497.0,0.60155338]
[1646304416099,0.001,43512.0,43497.0,0.31700848]
[1646304416371,0.001,43513.0,43508.0,0.145]
[1646304416571,0.052077,43519.0,43515.0,0.21944874]
[1646304416869,0.052077,43519.0,43516.0,0.06039477]
[1646304417069,0.052077,43519.0,43512.0,0.145]
[1646304417267,0.052077,43519.0,43517.0,0.145]
[1646304417472,0.052077,43519.0,43517.0,0.07798]
[1646304418470,0.052077,43519.0,43517.0,0.39498848]
[1646304418668,0.052077,43519.0,43518.0,0.2845449]
[1646304418870,0.052077,43519.0,43517.0,0.005]
[1646304419471,0.83723979,43518.0,43517.0,0.00139501]
[1646304419678,0.01148,43518.0,43517.0,0.00139501]
[1646304419872,0.54027912,43518.0,43517.0,0.00139501]
[1646304420088,0.72576285,43518.0,43504.0,0.006118]
[1646304420292,0.01148,43517.0,43504.0,0.006118]
[1646304420488,0.72576285,43518.0,43504.0,0.006118]
[1646304420688,0.72576285,43518.0,43480.0,1.205676]
[1646304420689,0.005,43512.0,43485.0,0.145]
[1646304420890,0.24049243,43501.0,43489.0,0.47560189]
[1646304421095,0.24049243,43501.0,43493.0,0.05889153]
[1646304421289,0.01148,43511.0,43493.0,0.05889153]
[1646304421494,0.16791888,43510.0,43493.0,0.05889153]
[1646304421996,0.31700848,43509.0,43493.0,0.05889153]
[1646304422389,0.31700848,43509.0,43489.0,0.145]
[1646304422589,0.00017344,43504.0,43485.0,0.145]
[1646304422790,0.00017344,43504.0,43484.0,0.00017352]
[1646304422791,0.00017344,43504.0,43484.0,0.14517352]
[1646304422994,0.21743452,43495.0,43484.0,0.14517352]
[1646304423189,0.005,43502.0,43484.0,0.145]
[1646304423190,0.31648,43502.0,43484.0,0.145]
[1646304423402,0.22415871,43496.0,43494.0,0.05398928]
[1646304423592,0.005,43510.0,43494.0,0.05398928]
[1646304423593,0.01148,43503.0,43494.0,0.05398928]
[1646304423843,0.01148,43503.0,43488.0,0.3]
[1646304423844,0.00017344,43500.0,43488.0,0.3]
[1646304424040,0.00017344,43500.0,43492.0,0.145]
[1646304424242,0.00017344,43500.0,43493.0,0.3]
[1646304424440,0.00017344,43500.0,43496.0,0.145]
[1646304424641,0.00017344,43500.0,43499.0,0.1395449]
[1646304424942,0.00017344,43500.0,43499.0,0.04593843]
[1646304425141,0.00017344,43500.0,43490.0,0.057496]
[1646304425344,0.00017344,43500.0,43493.0,0.145]
[1646304425542,0.00017344,43500.0,43484.0,0.1001735]
[1646304425742,0.00017344,43500.0,43483.0,0.22999925]
[1646304425743,0.3,43502.0,43483.0,0.22999925]
[1646304425943,9.46e-05,43500.0,43494.0,0.07222186]
[1646304426143,9.46e-05,43500.0,43498.0,0.1395449]
[1646304426344,0.21588843,43503.0,43499.0,0.1395449]
[1646304426542,0.21588843,43503.0,43488.0,0.145]
[1646304427045,0.21588843,43503.0,43497.0,0.06055618]
[1646304427244,0.01148,43509.0,43497.0,0.06055618]
[1646304427506,0.01148,43509.0,43497.0,0.20555618]
[1646304427708,0.24664655,43503.0,43493.0,0.145]
[1646304427904,0.24664655,43503.0,43489.0,0.1]
[1646304428104,0.24664655,43503.0,43489.0,0.245]
[1646304428304,0.18219258,43501.0,43493.0,0.1395449]
[1646304428507,0.18219258,43501.0,43488.0,0.4444]
[1646304428912,0.0424,43500.0,43488.0,0.4444]
[1646304429404,0.0424,43500.0,43489.0,0.00017435]
[1646304429405,0.22279291,43491.0,43489.0,0.00017435]
[1646304429605,0.0424,43500.0,43489.0,0.00017435]
[1646304429806,0.21956208,43495.0,43489.0,0.00017435]
[1646304430009,0.0424,43500.0,43489.0,0.00017435]
[1646304430405,0.0424,43500.0,43488.0,0.4444]
[1646304430604,0.27430365,43499.0,43488.0,0.4444]
[1646304430805,0.18950846,43490.0,43489.0,0.00517435]
[1646304431644,0.0424,43495.0,43489.0,0.005]
[1646304431845,0.22449173,43490.0,43489.0,0.005]
[1646304432651,0.78283576,43490.0,43489.0,0.005]
[1646304432847,1.060302,43489.0,43487.0,0.00017435]
[1646304433051,1.060302,43489.0,43475.0,0.4444]
[1646304433052,0.3474,43488.0,43475.0,0.4444]
[1646304433251,0.1620931,43483.0,43475.0,0.4444]
[1646304433448,0.3424,43482.0,43479.0,0.05750894]
[1646304433647,0.3424,43482.0,43475.0,0.4444]
[1646304433648,0.057549,43480.0,43475.0,0.4444]
[1646304433848,0.0424,43479.0,43475.0,0.4444]
[1646304434149,0.3,43478.0,43469.0,0.05937163]
[1646304434350,0.3,43478.0,43462.0,0.4444]
[1646304434351,0.0424,43477.0,43462.0,0.4444]
[1646304434551,0.057555,43476.0,43462.0,0.4444]
[1646304434750,0.3424,43475.0,43462.0,0.4444]
[1646304435188,0.0424,43475.0,43464.0,0.16051432]
[1646304435386,0.0424,43475.0,43465.0,0.145]
[1646304435585,0.0424,43475.0,43469.0,0.2845449]
[1646304435785,0.001,43478.0,43473.0,0.1395449]
[1646304435986,0.0424,43482.0,43463.0,0.06528885]
[1646304436187,0.262369,43473.0,43465.0,0.25804842]
[1646304436386,0.05,43484.0,43463.0,0.06528885]
[1646304436587,0.05,43484.0,43462.0,0.5894]
[1646304436890,0.057561,43477.0,43465.0,0.006]
[1646304437186,0.1937155,43473.0,43465.0,0.006]
[1646304437386,0.55067073,43472.0,43465.0,0.006]
[1646304437586,0.19825732,43467.0,43465.0,0.006]
[1646304437893,1.25,43466.0,43449.0,0.3]
[1646304438086,1.25,43466.0,43444.0,0.4444]
[1646304438087,1.349968,43466.0,43444.0,0.4444]
[1646304438286,0.1,43465.0,43464.0,0.00017422]
[1646304438489,0.805,43465.0,43464.0,0.00017422]
[1646304438737,0.1,43465.0,43464.0,0.00017422]
[1646304439142,0.1,43465.0,43447.0,0.3]
[1646304439343,0.1792226,43465.0,43446.0,0.145]
[1646304439540,0.057575,43462.0,43447.0,0.3]
[1646304439839,0.705,43461.0,43445.0,0.3]
[1646304440039,0.005,43464.0,43445.0,0.3]
[1646304440040,0.01648,43464.0,43445.0,0.3]
[1646304440241,0.72148,43464.0,43445.0,0.3]
[1646304440442,0.28193234,43453.0,43445.0,0.57852836]
[1646304440645,0.02314,43463.0,43456.0,0.51090713]
[1646304440646,0.1,43463.0,43456.0,0.51090713]
[1646304441542,0.2592288,43462.0,43456.0,0.51090713]
[1646304441941,0.64476394,43461.0,43456.0,0.51090713]
[1646304442241,0.705,43459.0,43456.0,0.51090713]
[1646304442517,0.11148,43460.0,43456.0,0.51090713]
[1646304442707,0.01148,43460.0,43456.0,0.51090713]
[1646304442903,0.003,43461.0,43456.0,0.51090713]
[1646304442904,0.003,43461.0,43459.0,0.1395449]
[1646304443222,0.003,43461.0,43456.0,0.51108131]
[1646304443804,0.227455,43458.0,43456.0,0.51108131]
[1646304444004,0.05757,43465.0,43457.0,0.1395449]
[1646304444205,0.01148,43466.0,43456.0,0.51108131]
[1646304444406,0.31148,43466.0,43456.0,0.51090713]
[1646304444706,0.2083729,43463.0,43456.0,0.51090713]
[1646304444904,0.057571,43464.0,43456.0,0.51090713]
[1646304445105,0.22653766,43461.0,43456.0,0.51090713]
[1646304445807,0.1,43465.0,43456.0,0.51106557]
[1646304446243,0.1,43470.0,43456.0,0.51106557]
[1646304446645,0.1,43470.0,43456.0,0.51090713]
[1646304446845,0.28913172,43461.0,43456.0,0.51090713]
[1646304447346,0.057566,43468.0,43460.0,0.1395449]
[1646304447547,0.1,43469.0,43457.0,0.3]
[1646304447744,0.1,43469.0,43456.0,0.51090713]
[1646304447946,0.1,43469.0,43457.0,0.3]
[1646304448149,0.29681597,43479.0,43461.0,0.00014576]
[1646304448150,0.17835475,43474.0,43461.0,0.00014576]
[1646304448349,0.24639066,43476.0,43462.0,0.28813393]
[1646304448547,0.01148,43475.0,43463.0,0.3]
[1646304448749,0.003,43474.0,43463.0,0.3]
[1646304448948,0.003,43474.0,43461.0,0.07600576]
[1646304449146,0.16141341,43474.0,43461.0,0.07586]
[1646304449346,0.16141341,43474.0,43466.0,0.00014575]
[1646304449548,0.003,43474.0,43466.0,0.00014575]
[1646304450198,0.05,43481.0,43469.0,0.07173422]
[1646304450496,0.01148,43483.0,43471.0,0.145]
[1646304450497,0.20826613,43478.0,43471.0,0.145]
[1646304450695,0.20826613,43478.0,43466.0,0.3]
[1646304451097,0.20826613,43478.0,43465.0,0.145]
[1646304451696,0.25571759,43477.0,43465.0,0.145]
[1646304451894,0.20826613,43478.0,43465.0,0.145]
[1646304452096,0.20826613,43478.0,43466.0,0.3]
[1646304452497,0.18625847,43471.0,43465.0,0.145]
[1646304452698,0.18625847,43471.0,43462.0,0.27618164]
[1646304453097,0.01,43469.0,43454.0,0.0575542]
[1646304453298,0.01,43469.0,43451.0,0.6143]
[1646304453299,0.01,43469.0,43456.0,0.99410713]
[1646304453503,0.715,43469.0,43456.0,0.99410713]
[1646304453752,0.21121149,43462.0,43456.0,0.51090713]
[1646304453947,1.105,43468.0,43456.0,0.51090713]
[1646304453948,0.4,43468.0,43456.0,0.51090713]
[1646304454148,0.01,43469.0,43456.0,0.51090713]
[1646304454346,0.01,43469.0,43462.0,0.00016647]
[1646304454946,0.19466964,43463.0,43462.0,0.00016647]
[1646304455147,0.19466964,43463.0,43462.0,0.13971137]
[1646304455349,0.19466964,43463.0,43462.0,0.1395449]
[1646304455649,0.19466964,43463.0,43460.0,0.44456647]
[1646304456049,0.01,43469.0,43460.0,0.44456647]
[1646304456248,0.20956123,43461.0,43460.0,0.44456647]
[1646304456445,0.01,43469.0,43460.0,0.4444]
[1646304456648,0.01,43469.0,43462.0,0.00016647]
[1646304456848,0.62659507,43468.0,43462.0,0.00016647]
[1646304457050,0.705,43466.0,43462.0,0.00016647]
[1646304457349,0.8699643,43463.0,43462.0,0.00016647]
[1646304457621,0.2073643,43463.0,43456.0,0.51090713]
[1646304457824,0.1,43462.0,43460.0,0.00016647]
[1646304458017,0.0424,43461.0,43460.0,0.00016647]
[1646304458218,0.3424,43461.0,43460.0,0.00016647]
[1646304458420,1.104978,43461.0,43460.0,0.00016647]
[1646304458629,1.204978,43461.0,43460.0,0.00016647]
[1646304458820,0.502978,43461.0,43460.0,0.00016647]
[1646304459017,0.1454,43461.0,43458.0,0.00015983]
[1646304459218,0.1,43460.0,43458.0,0.00015983]
[1646304459419,0.0424,43460.0,43458.0,0.00015983]
[1646304459619,0.003,43461.0,43458.0,0.00015983]
[1646304460019,0.3,43470.0,43458.0,0.00015983]
[1646304460221,0.22337906,43469.0,43457.0,0.145]
[1646304460420,0.23571698,43467.0,43457.0,0.14515983]
[1646304460618,0.23571698,43467.0,43457.0,7.769e-05]
[1646304461465,0.23571698,43467.0,43457.0,0.23928802]
[1646304461862,0.23571698,43467.0,43456.0,0.51090713]
[1646304462062,0.11,43469.0,43456.0,0.51090713]
[1646304462263,0.01,43469.0,43456.0,0.51090713]
[1646304462496,0.01,43469.0,43463.0,0.18876582]
[1646304462671,0.01,43469.0,43464.0,0.3]
[1646304462865,0.011,43469.0,43464.0,0.35859847]
[1646304463162,0.011,43469.0,43463.0,0.145]
[1646304463362,0.011,43469.0,43461.0,0.145]
[1646304463963,0.01,43469.0,43464.0,0.21405995]
[1646304464163,0.01,43469.0,43461.0,0.145]
[1646304464364,0.01,43469.0,43464.0,0.00016307]
[1646304465202,0.01,43469.0,43457.0,0.445]
[1646304465406,0.01,43469.0,43464.0,0.00016282]
[1646304466005,0.19566779,43469.0,43464.0,0.00016282]
[1646304466200,0.01,43469.0,43464.0,0.00016282]
[1646304466404,0.01,43469.0,43460.0,0.2088271]
[1646304466705,0.17422312,43468.0,43464.0,0.00016282]
[1646304467004,0.01,43469.0,43464.0,0.00016282]
[1646304467405,0.01,43469.0,43468.0,0.1395449]
[1646304467609,0.01,43469.0,43468.0,0.445]
[1646304467806,0.05,43481.0,43469.0,1.0]
[1646304468003,0.21699605,43484.0,43469.0,1.0424]
[1646304468206,0.21699605,43484.0,43475.0,0.145]
[1646304468860,0.22099605,43484.0,43477.0,0.24775125]
[1646304469268,0.22099605,43484.0,43482.0,0.145]
[1646304469269,0.014,43484.0,43482.0,0.145]
[1646304469466,0.014,43484.0,43483.0,0.3]
[1646304469662,0.014,43484.0,43482.0,0.145]
[1646304469965,0.01,43484.0,43483.0,0.50365195]
[1646304470164,0.21524727,43498.0,43484.0,1.0]
[1646304470365,0.01149,43502.0,43489.0,0.145]
[1646304470765,0.33411558,43497.0,43489.0,0.145]
[1646304470963,0.0259559,43501.0,43487.0,0.01115987]
[1646304470964,0.33411558,43496.0,43487.0,0.01115987]
[1646304471166,0.26947397,43491.0,43479.0,0.5018]
[1646304471366,0.26947397,43491.0,43479.0,0.002]
[1646304471367,0.60358955,43491.0,43479.0,0.002]
[1646304471566,0.33411558,43491.0,43479.0,0.002]
[1646304471771,0.33411558,43494.0,43485.0,0.145]
[1646304471964,0.19644433,43492.0,43485.0,0.145]
[1646304472170,0.19644433,43492.0,43479.0,0.3]
[1646304472171,0.19644433,43492.0,43481.0,0.145]
[1646304472364,0.53055991,43492.0,43481.0,0.145]
[1646304472594,0.22962188,43485.0,43481.0,0.145]
[1646304472793,0.22962188,43485.0,43476.0,0.003]
[1646304473093,0.33411558,43484.0,43476.0,0.003]
[1646304473292,0.33411558,43482.0,43476.0,0.003]
[1646304473892,0.52823621,43484.0,43476.0,0.003]
[1646304474098,0.52823621,43484.0,43471.0,0.057537]
[1646304474099,0.33411558,43481.0,43471.0,0.057537]
[1646304474292,0.33411558,43481.0,43472.0,0.145]
[1646304474496,0.33411558,43483.0,43472.0,0.145]
[1646304474697,0.52823621,43484.0,43473.0,0.145]
[1646304474894,0.33411558,43483.0,43473.0,0.42177481]
[1646304475092,0.17614058,43482.0,43473.0,0.42177481]
[1646304475294,0.33411558,43482.0,43473.0,0.42177481]
[1646304475593,0.33411558,43481.0,43473.0,0.145]
[1646304475996,0.33411558,43480.0,43473.0,0.145]
[1646304476254,0.33411558,43481.0,43473.0,0.145]
[1646304476954,0.33411558,43481.0,43473.0,0.147]
[1646304477354,0.33411558,43482.0,43473.0,0.147]
[1646304477555,0.33411558,43480.0,43473.0,0.147]
[1646304477954,0.33411558,43480.0,43473.0,0.145]
[1646304478756,0.20118293,43477.0,43468.0,0.001]
[1646304478955,0.20118293,43477.0,43472.0,0.145]
[1646304479157,0.20118293,43477.0,43468.0,0.001]
[1646304479358,0.20118293,43477.0,43468.0,0.446]
[1646304479555,0.20118293,43477.0,43469.0,0.24597728]
[1646304479758,0.33411558,43480.0,43468.0,0.20354]
[1646304480021,0.33411558,43480.0,43464.0,0.4651]
[1646304480022,0.33411558,43475.0,43464.0,0.4651]
[1646304480221,0.42390352,43479.0,43467.0,0.00014964]
[1646304480222,0.33411558,43472.0,43467.0,0.00014964]
[1646304480420,0.68941758,43470.0,43467.0,0.00014964]
[1646304480621,0.50822389,43470.0,43467.0,0.00014964]
[1646304480925,0.21376509,43469.0,43467.0,0.00014964]
[1646304481120,1.705,43467.0,43456.0,0.97230713]
[1646304481323,1.7474,43467.0,43466.0,0.00014996]
[1646304481521,1.8163,43467.0,43466.0,0.00014996]
[1646304481821,1.9163,43467.0,43466.0,0.00014996]
[1646304482128,1.9163,43467.0,43441.0,0.01]
[1646304482129,0.17790037,43450.0,43441.0,0.01]
[1646304482521,0.712895,43449.0,43441.0,0.01]
[1646304482720,0.655302,43449.0,43441.0,0.01]
[1646304482926,0.002,43450.0,43441.0,0.01]
[1646304483123,0.3,43448.0,43441.0,0.01]
[1646304483328,0.002,43450.0,43445.0,0.1395449]
[1646304483522,0.002,43450.0,43441.0,0.01]
[1646304484056,0.3,43451.0,43441.0,0.01]
[1646304484660,0.4,43451.0,43441.0,0.06429171]
[1646304484856,0.3,43451.0,43444.0,0.00016088]
[1646304485857,0.3,43451.0,43441.0,0.012]
[1646304486056,0.3,43451.0,43445.0,0.00016087]
[1646304486859,0.305,43451.0,43445.0,0.00016087]
[1646304487059,0.305,43451.0,43441.0,0.01]
[1646304487262,0.305,43451.0,43446.0,0.00016052]
[1646304488109,0.50655098,43451.0,43446.0,0.00016052]
[1646304488305,0.50655098,43451.0,43441.0,0.01]
[1646304488504,0.50655098,43451.0,43446.0,0.00016052]
[1646304488708,0.3,43451.0,43446.0,0.00016052]
[1646304489506,0.3,43451.0,43441.0,0.01]
[1646304489708,0.47104614,43451.0,43446.0,0.00015335]
[1646304490706,0.47104614,43451.0,43441.0,0.01]
[1646304490909,0.2413169,43443.0,43441.0,0.01]
[1646304491107,0.2413169,43443.0,43442.0,0.1395449]
[1646304491342,0.355302,43450.0,43442.0,0.1395449]
[1646304491544,0.47104614,43451.0,43441.0,0.01]
[1646304492343,0.21914692,43442.0,43441.0,0.01]
[1646304492651,0.88114108,43442.0,43441.0,0.01]
[1646304492845,0.57444892,43442.0,43441.0,0.01]
[1646304493045,0.21914692,43442.0,43441.0,0.01]
[1646304493245,0.57444892,43442.0,43441.0,0.01]
[1646304493444,0.37873344,43442.0,43441.0,0.01]
[1646304494047,1.7457276,43442.0,43441.0,0.01]
[1646304494247,1.7457276,43442.0,43439.0,0.00016049]
[1646304494248,0.705,43440.0,43439.0,0.00016049]
[1646304494447,1.36699416,43440.0,43424.0,0.4777]
[1646304494646,0.21546654,43429.0,43424.0,0.4677]
[1646304494849,0.20186885,43432.0,43428.0,0.05757516]
[1646304495102,0.20186885,43432.0,43421.0,0.01]
[1646304495103,0.1,43431.0,43421.0,0.01]
[1646304495405,0.26222865,43430.0,43421.0,0.01]
[1646304496209,1.060302,43429.0,43421.0,0.01]
[1646304496403,0.355302,43426.0,43421.0,0.01]
[1646304496705,0.355302,43424.0,43421.0,0.01]
[1646304496902,0.1775804,43424.0,43421.0,0.01]